fUST/lending_fUST_20240915
["ID","MTS","AMOUNT","RATE_DAILY","PERIOD"]
[338177090,1726359040409,-500.0,0.00021896,2]
[338177091,1726359040424,-500.0,0.00021896,2]
[338177092,1726359040435,-500.0,0.00021896,2]
[338177093,1726359040446,-500.0,0.00021896,2]
[338177094,1726359040457,-500.0,0.00021896,2]
[338177095,1726359040469,-167.61539642,0.00021896,2]
[338177096,1726359040481,-500.0,0.00021896,2]
[338177097,1726359040492,-196.41234321,0.00021896,2]
[338177098,1726359040503,-723.23668,0.00021896,2]
[338177099,1726359040513,-723.23668,0.00021896,2]
[338177100,1726359040522,-179.199309,0.00021896,2]
[338177101,1726359040531,-179.199309,0.00021896,2]
[338177102,1726359040541,-237.242181,0.00021896,2]
[338177103,1726359040550,-237.242181,0.00021896,2]
[338177104,1726359040560,-239.874501,0.00021896,2]
[338177105,1726359040569,-239.874501,0.00021896,2]
[338177106,1726359040578,-206.670117,0.00021896,2]
[338177107,1726359040587,-206.670117,0.00021896,2]
[338177108,1726359040597,-151.0,0.00021896,2]
[338177109,1726359040606,-151.0,0.00021896,2]
[338177110,1726359040615,-213.36392,0.00021896,2]
[338177111,1726359040625,-213.36392,0.00021896,2]
[338177112,1726359040634,-151.0,0.00021896,2]
[338177113,1726359040643,-151.0,0.00021896,2]
[338177114,1726359040652,-160.0,0.00021896,2]
[338177115,1726359040662,-160.0,0.00021896,2]
[338177116,1726359040672,-6804.4317459,0.00021897,3]
[338177117,1726359040684,-1674.80980652,0.00021897,3]
[338177122,1726359043099,-1466.5777981,0.00021787,2]
[338177123,1726359043112,-4001.83855538,0.00021897,3]
[338177124,1726359043122,-36181.0679638,0.00021897,3]
[338177125,1726359043131,-151.0,0.00021897,2]
[338177126,1726359043141,-151.0,0.00021897,2]
[338177127,1726359043153,-151.0,0.00021897,2]
[338177128,1726359043163,-500.0,0.00021897,2]
[338177129,1726359043174,-151.0,0.00021897,2]
[338177130,1726359043185,-151.0,0.00021897,2]
[338177131,1726359043195,-151.0,0.00021897,2]
[338177132,1726359043204,-151.0,0.00021897,2]
[338177133,1726359043215,-151.0,0.00021897,2]
[338177134,1726359043226,-151.0,0.00021897,2]
[338177135,1726359043235,-1793.067081,0.00021897,2]
[338177136,1726359043245,-1793.067081,0.00021897,2]
[338177137,1726359043255,-1793.067081,0.00021897,2]
[338177138,1726359043265,-1793.067081,0.00021897,2]
[338177139,1726359043279,-1793.067081,0.00021897,2]
[338177140,1726359043290,-1793.067081,0.00021897,2]
[338177141,1726359043300,-151.0,0.00021897,2]
[338177142,1726359043311,-21.58629202,0.00021897,2]
[338177153,1726359159124,203.802263,0.00013699,2]
[338177185,1726359674317,201.783591,0.00013699,2]
[338177198,1726360040143,-233.38558553,0.00020187,2]
[338177199,1726360040166,-201.783591,0.00020187,2]
[338177200,1726360040190,-1705.12211402,0.00021498,2]
[338177201,1726360045110,-325.9631745,0.00021498,2]
[338177305,1726360240230,-583.88,0.0001999,3]
[338177307,1726360240242,-160.0,0.00019999,2]
[338177309,1726360240251,-300.0,0.00019999,2]
[338177311,1726360240262,-192.52742852,0.0002,5]
[338177312,1726360240273,-39133.43968745,0.0002,2]
[338177320,1726360243284,-2746.62,0.0002,2]
[338177321,1726360243296,-1208.55044815,0.0002,2]
[338177329,1726360246220,-591.98722474,0.0002,2]
[338177330,1726360246232,-73585.64265543,0.0002,2]
[338177334,1726360250202,200.303411,0.00013699,2]
[338177338,1726360780442,200.429503,0.00013699,2]
[338177352,1726361226112,-500.0,0.0001815,2]
[338177353,1726361226135,-169.7136422,0.00019006,2]
[338177354,1726361226156,-500.0,0.00019105,2]
[338177355,1726361226176,-163.402664,0.00019178,2]
[338177356,1726361226199,-952.6809099,0.0001988,2]
[338177358,1726361247152,-330.57466342,0.0001988,2]
[338177359,1726361247183,-286.11696859,0.00019973,2]
[338177367,1726361347985,208.376546,0.00013699,2]
[338177368,1726361362433,161.4747156,0.00019178,2]
[338177376,1726361432299,-341.51595617,0.00019873,2]
[338177449,1726361438419,-781.33267045,0.00019873,2]
[338177450,1726361438430,-747.74011725,0.000199,2]
[338177451,1726361438441,-300.0,0.00019969,2]
[338177452,1726361438450,-312.9272123,0.0001997,3]
[338177459,1726361440250,-343.5727877,0.0001997,3]
[338177460,1726361440260,-22145.1379832,0.0001997,3]
[338177461,1726361440269,-45568.3386318,0.0001997,3]
[338177463,1726361440280,-160.0,0.00019979,2]
[338177464,1726361440290,-160.0,0.00019979,2]
[338177465,1726361440301,-192.52742852,0.0001998,5]
[338177466,1726361440312,-66435.4139497,0.0001998,3]
[338177467,1726361440322,-136705.015895,0.0001998,3]
[338177468,1726361440332,-160.0,0.00019989,2]
[338177469,1726361440342,-160.0,0.00019989,2]
[338177470,1726361440352,-500.0,0.00019989,2]
[338177471,1726361440361,-500.0,0.00019989,2]
[338177472,1726361440371,-446.54147173,0.00019989,2]
[338177473,1726361440381,-500.0,0.00019989,2]
[338177474,1726361440390,-198.1888785,0.00019989,2]
[338177475,1726361440400,-500.0,0.00019989,2]
[338177476,1726361440410,-500.0,0.00019989,2]
[338177477,1726361440420,-500.0,0.00019989,2]
[338177478,1726361440430,-329.3790704,0.00019989,2]
[338177479,1726361440439,-167.61539642,0.00019989,2]
[338177480,1726361440448,-500.0,0.00019989,2]
[338177481,1726361440458,-500.0,0.00019989,2]
[338177482,1726361440468,-500.0,0.00019989,2]
[338177483,1726361440478,-500.0,0.00019989,2]
[338177484,1726361440487,-500.0,0.00019989,2]
[338177485,1726361440497,-500.0,0.00019989,2]
[338177486,1726361440507,-500.0,0.00019989,2]
[338177487,1726361440516,-621.37447736,0.00019989,2]
[338177488,1726361440526,-500.0,0.00019989,2]
[338177489,1726361440535,-200.0,0.00019989,2]
[338177490,1726361440545,-500.0,0.00019989,2]
[338177491,1726361440555,-160.46574835,0.00019989,2]
[338177492,1726361440564,-22145.1379832,0.0001999,3]
[338177493,1726361440574,-45568.3386318,0.0001999,3]
[338177494,1726361440585,-151.0,0.0001999,2]
[338177495,1726361440595,-151.0,0.0001999,2]
[338177496,1726361440605,-151.0,0.0001999,2]
[338177497,1726361440614,-184.047563,0.0001999,2]
[338177498,1726361440624,-184.047563,0.0001999,2]
[338177499,1726361440634,-184.047563,0.0001999,2]
[338177500,1726361440643,-184.047563,0.0001999,2]
[338177501,1726361440653,-723.23668,0.0001999,2]
[338177502,1726361440865,-723.23668,0.0001999,2]
[338177503,1726361440875,-723.23668,0.0001999,2]
[338177504,1726361440884,-723.23668,0.0001999,2]
[338177505,1726361440893,-215.887051,0.0001999,2]
[338177506,1726361440902,-215.887051,0.0001999,2]
[338177507,1726361440912,-215.887051,0.0001999,2]
[338177508,1726361440921,-215.887051,0.0001999,2]
[338177509,1726361440931,-280.41370798,0.0001999,2]
[338177510,1726361440940,-151.0,0.0001999,2]
[338177511,1726361440949,-151.0,0.0001999,2]
[338177512,1726361440958,-151.0,0.0001999,2]
[338177513,1726361440969,-151.0,0.0001999,2]
[338177514,1726361440978,-151.0,0.0001999,2]
[338177515,1726361440987,-151.0,0.0001999,2]
[338177516,1726361440996,-340.161674,0.0001999,2]
[338177517,1726361441007,-340.161674,0.0001999,2]
[338177518,1726361441016,-340.161674,0.0001999,2]
[338177519,1726361441025,-340.161674,0.0001999,2]
[338177520,1726361441034,-1492.977942,0.0001999,2]
[338177521,1726361441043,-1492.977942,0.0001999,2]
[338177522,1726361441053,-1492.977942,0.0001999,2]
[338177523,1726361441062,-1492.977942,0.0001999,2]
[338177524,1726361441071,-237.096504,0.0001999,2]
[338177525,1726361441080,-237.096504,0.0001999,2]
[338177526,1726361441090,-237.096504,0.0001999,2]
[338177527,1726361441099,-237.096504,0.0001999,2]
[338177528,1726361441109,-5068.1486,0.0001999,2]
[338177529,1726361441119,-5068.1486,0.0001999,2]
[338177530,1726361441129,-5068.1486,0.0001999,2]
[338177531,1726361441138,-5068.1486,0.0001999,2]
[338177532,1726361441148,-110725.689916,0.0001999,3]
[338177533,1726361441157,-10413.30449979,0.0001999,3]
[338177534,1726361441462,-39785.96711597,0.0001999,3]
[338177535,1726361441474,-335.26076708,0.0001999,3]
[338177540,1726361443318,-27635.28943229,0.0001999,3]
[338177609,1726361446573,-262.63947845,0.0001999,3]
[338177611,1726361446590,-12704.21597002,0.0001999,3]
[338177612,1726361446604,-151.0,0.0001999,2]
[338177614,1726361446619,-151.0,0.0001999,2]
[338177616,1726361446631,-179.199309,0.0001999,2]
[338177617,1726361446642,-179.199309,0.0001999,2]
[338177619,1726361446655,-151.0,0.0001999,2]
[338177620,1726361446669,-151.0,0.0001999,2]
[338177621,1726361446682,-179.199309,0.0001999,2]
[338177622,1726361446697,-179.199309,0.0001999,2]
[338177623,1726361446711,-1255.146957,0.0001999,2]
[338177624,1726361446728,-1255.146957,0.0001999,2]
[338177625,1726361446741,-1255.146957,0.0001999,2]
[338177626,1726361446756,-1255.146957,0.0001999,2]
[338177627,1726361446769,-237.242181,0.0001999,2]
[338177628,1726361446782,-237.242181,0.0001999,2]
[338177629,1726361446794,-237.242181,0.0001999,2]
[338177630,1726361446809,-237.242181,0.0001999,2]
[338177631,1726361446821,-151.0,0.0001999,2]
[338177632,1726361446836,-151.0,0.0001999,2]
[338177633,1726361446851,-151.0,0.0001999,2]
[338177634,1726361446864,-151.0,0.0001999,2]
[338177635,1726361446878,-151.0,0.0001999,2]
[338177636,1726361446890,-151.0,0.0001999,2]
[338177637,1726361446902,-206.670117,0.0001999,2]
[338177638,1726361446914,-206.670117,0.0001999,2]
[338177639,1726361446927,-206.670117,0.0001999,2]
[338177640,1726361446940,-206.670117,0.0001999,2]
[338177641,1726361446952,-437.860258,0.0001999,2]
[338177642,1726361446968,-437.860258,0.0001999,2]
[338177643,1726361446980,-437.860258,0.0001999,2]
[338177644,1726361446996,-437.860258,0.0001999,2]
[338177645,1726361447010,-437.860258,0.0001999,2]
[338177646,1726361447023,-437.860258,0.0001999,2]
[338177647,1726361447033,-437.860258,0.0001999,2]
[338177648,1726361447045,-437.860258,0.0001999,2]
[338177649,1726361447058,-437.860258,0.0001999,2]
[338177650,1726361447069,-437.860258,0.0001999,2]
[338177651,1726361447081,-151.0,0.0001999,2]
[338177652,1726361447094,-151.0,0.0001999,2]
[338177653,1726361447109,-151.0,0.0001999,2]
[338177654,1726361447121,-151.0,0.0001999,2]
[338177655,1726361447132,-151.0,0.0001999,2]
[338177656,1726361447145,-160.0,0.00019999,2]
[338177657,1726361447158,-160.0,0.00019999,2]
[338177658,1726361447171,-15198.00580484,0.0002,5]
[338177659,1726361447184,-70544.01111774,0.0002,2]
[338177667,1726361815817,10000.0,0.00025999,60]
[338177669,1726361845557,207.663628,0.00013699,2]
[338177690,1726362433146,-500.0,0.00019321,2]
[338177691,1726362433171,-1034.50617983,0.000198,2]
[338177692,1726362433193,-982.49254831,0.0001988,2]
[338177693,1726362433218,-58.15620861,0.00019882,2]
[338177695,1726362460945,207.550381,0.00013699,2]
[338177697,1726362564015,600.0,0.00016358,2]
[338177698,1726362564637,241.66327612,0.00016358,2]
[338177699,1726362564662,358.33672388,0.00016358,2]
[338177844,1726362640550,-859.68097978,0.0001989,2]
[338177845,1726362640560,-500.0,0.00019973,2]
[338177846,1726362640570,-300.0,0.00019989,2]
[338177847,1726362640583,-38126.28613619,0.0001999,3]
[338177856,1726362643654,-28342.43382349,0.0001999,3]
[338177870,1726363190692,197.172861,0.00013699,2]
[338177872,1726363382136,-162.846435,0.0001895,2]
[338177882,1726363625401,-163.402664,0.00019178,2]
[338177883,1726363625423,-162.846435,0.00019444,2]
[338177884,1726363625444,-5873.81248312,0.00019615,2]
[338177885,1726363625466,-3000.0,0.00019682,2]
[338177886,1726363625486,-300.0,0.00019781,2]
[338177887,1726363625510,-1147.94068374,0.00019782,2]
[338177888,1726363625533,-769.38816321,0.0001988,2]
[338177889,1726363625558,-162.846435,0.00019938,2]
[338177890,1726363625581,-260.95373396,0.00019973,2]
[338177891,1726363625606,-21930.9138619,0.0001998,3]
[338177892,1726363625631,-2173.92727668,0.0001998,3]
[338177893,1726363625654,-10965.4569309,0.00019989,3]
[338177894,1726363625677,-1086.96363834,0.00019989,3]
[338177895,1726363625700,-23957.12297415,0.0001999,3]
[338177896,1726363632106,-52801.07554245,0.0001999,3]
[338177897,1726363632128,-7608.74546838,0.0001999,3]
[338177898,1726363632148,-580.56534928,0.00019999,2]
[338177899,1726363632168,-312.57903021,0.00019999,2]
[338177900,1726363632190,-500.0,0.00019999,2]
[338177901,1726363632216,-500.0,0.00019999,2]
[338177902,1726363632239,-500.0,0.00019999,2]
[338177903,1726363632261,-317.3307775,0.00019999,2]
[338177904,1726363632283,-500.0,0.00019999,2]
[338177905,1726363632306,-500.0,0.00019999,2]
[338177906,1726363632329,-500.0,0.00019999,2]
[338177907,1726363632353,-500.0,0.00019999,2]
[338177908,1726363632375,-500.0,0.00019999,2]
[338177909,1726363632404,-500.0,0.00019999,2]
[338177910,1726363632426,-500.0,0.00019999,2]
[338177911,1726363632449,-374.96213415,0.00019999,2]
[338177912,1726363632470,-112613.82436385,0.0002,2]
[338177913,1726363632493,-198149.1647083,0.0002,2]
[338177914,1726363632515,-200.0,0.0002,2]
[338177915,1726363632535,-151.0,0.0002,2]
[338177916,1726363632557,-151.0,0.0002,2]
[338177917,1726363632577,-151.0,0.0002,2]
[338177918,1726363632600,-151.0,0.0002,2]
[338177919,1726363632625,-1000.0,0.0002,3]
[338177920,1726363632646,-176.215464,0.0002,2]
[338177921,1726363632667,-176.215464,0.0002,2]
[338177922,1726363632688,-500.0,0.0002,2]
[338177923,1726363632709,-229.63456092,0.0002,2]
[338177924,1726363632732,-153.0,0.0002,2]
[338177925,1726363632753,-153.0,0.0002,2]
[338177926,1726363632774,-153.0521378,0.0002,2]
[338177927,1726363632795,-500.0,0.0002,2]
[338177928,1726363632815,-500.0,0.0002,2]
[338177929,1726363632836,-500.0,0.0002,2]
[338177930,1726363632860,-187.27462075,0.0002,2]
[338177931,1726363632881,-151.0,0.0002,2]
[338177932,1726363632901,-160.78452493,0.0002,2]
[338177933,1726363632922,-500.0,0.0002,2]
[338177934,1726363632944,-151.0,0.0002,2]
[338177935,1726363632966,-500.0,0.0002,2]
[338177936,1726363632989,-500.0,0.0002,2]
[338177937,1726363633011,-414.09241607,0.0002,2]
[338177938,1726363633033,-213.88303141,0.0002,2]
[338177939,1726363633054,-500.0,0.0002,2]
[338177940,1726363633076,-500.0,0.0002,2]
[338177941,1726363633100,-151.0,0.0002,2]
[338177942,1726363633123,-194.006365,0.0002,2]
[338177943,1726363633145,-194.006365,0.0002,2]
[338177944,1726363633170,-4054.51888,0.0002,2]
[338177945,1726363633193,-4054.51888,0.0002,2]
[338177946,1726363633216,-151.0,0.0002,2]
[338177947,1726363633241,-151.0,0.0002,2]
[338177948,1726363633263,-203.98542417,0.0002,2]
[338177949,1726363633287,-677.798876,0.0002,2]
[338177950,1726363633309,-677.798876,0.0002,2]
[338177951,1726363633331,-151.0,0.0002,2]
[338177952,1726363633354,-432.108825,0.0002,2]
[338177953,1726363633377,-432.108825,0.0002,2]
[338177954,1726363633400,-558.837137,0.0002,2]
[338177955,1726363633423,-558.837137,0.0002,2]
[338177956,1726363633446,-500.0,0.0002,2]
[338177957,1726363633469,-151.0,0.0002,2]
[338177958,1726363633490,-500.0,0.0002,2]
[338177959,1726363633512,-151.0,0.0002,2]
[338177960,1726363633536,-1389.19006,0.0002,2]
[338177961,1726363633560,-731.51988,0.0002,2]
[338177962,1726363633584,-1389.19006,0.0002,2]
[338177963,1726363633606,-731.51988,0.0002,2]
[338177964,1726363633629,-1594.330648,0.0002,2]
[338177965,1726363633651,-165.336093,0.0002,2]
[338177966,1726363633676,-1594.330648,0.0002,2]
[338177967,1726363633702,-165.336093,0.0002,2]
[338177968,1726363633730,-151.0,0.0002,2]
[338177969,1726363633752,-500.0,0.0002,2]
[338177970,1726363633774,-151.760206,0.0002,2]
[338177971,1726363633796,-218.930129,0.0002,2]
[338177972,1726363633818,-218.930129,0.0002,2]
[338177973,1726363633841,-151.975802,0.0002,2]
[338177974,1726363633866,-151.0,0.0002,2]
[338177975,1726363633888,-151.0,0.0002,2]
[338177976,1726363633910,-151.0,0.0002,2]
[338177977,1726363633932,-151.0,0.0002,2]
[338177978,1726363633955,-151.0,0.0002,2]
[338177979,1726363633985,-665.130486,0.0002,2]
[338177980,1726363634008,-665.130486,0.0002,2]
[338177981,1726363634030,-500.0,0.0002,2]
[338177982,1726363634052,-151.173119,0.0002,2]
[338177983,1726363634073,-151.173119,0.0002,2]
[338177984,1726363634095,-549.94975505,0.0002,2]
[338177985,1726363634117,-151.0,0.0002,2]
[338177986,1726363634140,-151.0,0.0002,2]
[338177987,1726363634163,-151.0,0.0002,2]
[338177988,1726363634185,-500.0,0.0002,2]
[338177989,1726363634206,-500.0,0.0002,2]
[338177990,1726363634233,-151.0,0.0002,2]
[338177991,1726363634255,-197.172861,0.00020187,2]
[338177992,1726363634277,-769.38816315,0.00020666,2]
[338177993,1726363634299,-500.0,0.00020923,2]
[338177994,1726363634320,-500.0,0.00021,2]
[338177995,1726363634343,-618.49245053,0.00021,3]
[338177996,1726363634364,-150.112233,0.00021,2]
[338177997,1726363634386,-155.0,0.0002106,4]
[338177998,1726363634408,-150.112233,0.000211,2]
[338177999,1726363634433,-150.112233,0.000213,3]
[338178000,1726363634456,-150.112233,0.000213,2]
[338178001,1726363634482,-151.0,0.00021341,2]
[338178002,1726363634505,-151.0,0.00021341,2]
[338178003,1726363634528,-151.0,0.00021341,2]
[338178004,1726363634555,-192.027528,0.00021341,2]
[338178005,1726363634580,-154.074996,0.00021341,2]
[338178006,1726363634604,-192.027528,0.00021341,2]
[338178007,1726363634629,-151.0,0.00021341,2]
[338178008,1726363634652,-151.0,0.00021341,2]
[338178009,1726363634676,-1004.117566,0.00021341,2]
[338178010,1726363634700,-1004.117566,0.00021341,2]
[338178011,1726363634722,-151.0,0.0002135,2]
[338178012,1726363634748,-218.930129,0.0002135,2]
[338178013,1726363634775,-218.930129,0.0002135,2]
[338178014,1726363634798,-151.0,0.0002135,2]
[338178015,1726363634822,-151.0,0.0002135,2]
[338178016,1726363634846,-151.0,0.0002135,2]
[338178017,1726363634873,-151.0,0.0002135,2]
[338178018,1726363634897,-665.130486,0.0002135,2]
[338178019,1726363634920,-665.130486,0.0002135,2]
[338178020,1726363634944,-151.173119,0.0002135,2]
[338178021,1726363634969,-151.173119,0.0002135,2]
[338178022,1726363634993,-151.0,0.0002135,2]
[338178023,1726363635017,-262.13377962,0.0002135,2]
[338178024,1726363635040,-151.0,0.0002135,2]
[338178025,1726363635064,-10965.4569309,0.0002135,3]
[338178026,1726363635088,-1086.96363834,0.0002135,3]
[338178027,1726363635110,-151.0,0.0002136,2]
[338178028,1726363635132,-151.0,0.0002136,2]
[338178029,1726363635154,-194.006365,0.0002136,2]
[338178030,1726363635176,-194.006365,0.0002136,2]
[338178031,1726363635198,-4054.51888,0.0002136,2]
[338178032,1726363635221,-4054.51888,0.0002136,2]
[338178033,1726363635243,-151.0,0.0002136,2]
[338178034,1726363635266,-181.780368,0.0002136,2]
[338178035,1726363635289,-677.798876,0.0002136,2]
[338178036,1726363635310,-677.798876,0.0002136,2]
[338178037,1726363635334,-151.0,0.0002136,2]
[338178038,1726363635361,-432.108825,0.0002136,2]
[338178039,1726363635385,-432.108825,0.0002136,2]
[338178040,1726363635409,-558.837137,0.0002136,2]
[338178041,1726363635433,-558.837137,0.0002136,2]
[338178042,1726363635464,-151.0,0.0002136,2]
[338178043,1726363635693,-151.0,0.0002136,2]
[338178044,1726363635717,-151.0,0.0002136,2]
[338178045,1726363635741,-151.0,0.0002136,2]
[338178046,1726363635765,-1389.19006,0.0002136,2]
[338178047,1726363635788,-731.51988,0.0002136,2]
[338178048,1726363635830,-731.51988,0.0002136,2]
[338178049,1726363635863,-1389.19006,0.0002136,2]
[338178050,1726363635889,-731.51988,0.0002136,2]
[338178051,1726363635916,-731.51988,0.0002136,2]
[338178052,1726363635942,-1594.330648,0.0002136,2]
[338178053,1726363635966,-1594.330648,0.0002136,2]
[338178054,1726363635994,-165.336093,0.0002136,2]
[338178055,1726363636020,-1594.330648,0.0002136,2]
[338178056,1726363636044,-1594.330648,0.0002136,2]
[338178057,1726363636069,-165.336093,0.0002136,2]
[338178058,1726363636094,-1000.0,0.0002137,2]
[338178059,1726363636119,-500.0,0.0002137,2]
[338178060,1726363636143,-159.35220493,0.0002137,2]
[338178061,1726363636166,-1037.41654249,0.0002137,2]
[338178062,1726363636189,-1143.01851396,0.0002137,2]
[338178063,1726363636214,-151.0,0.0002137,2]
[338178064,1726363636238,-151.0,0.0002137,2]
[338178065,1726363636263,-151.0,0.0002137,2]
[338178066,1726363636286,-151.0,0.0002137,2]
[338178067,1726363636310,-151.0,0.0002137,2]
[338178068,1726363636332,-151.0,0.0002137,2]
[338178069,1726363636355,-151.0,0.0002137,2]
[338178070,1726363636379,-151.0,0.0002137,2]
[338178071,1726363636402,-176.215464,0.00021446,2]
[338178072,1726363636425,-176.215464,0.00021446,2]
[338178073,1726363636448,-769.38816315,0.00021451,2]
[338178074,1726363636470,-150.0,0.00021473,2]
[338178075,1726363636496,-210.502521,0.0002148,2]
[338178076,1726363636521,-151.0,0.0002148,2]
[338178077,1726363636545,-151.0,0.0002148,2]
[338178078,1726363636569,-151.0,0.0002148,2]
[338178079,1726363636592,-151.173119,0.0002148,2]
[338178080,1726363636616,-151.173119,0.0002148,2]
[338178081,1726363636640,-151.0,0.0002148,2]
[338178082,1726363636664,-151.0,0.0002148,2]
[338178083,1726363636688,-10965.4569309,0.0002148,3]
[338178084,1726363636713,-1086.96363834,0.0002148,3]
[338178085,1726363636737,-151.0,0.0002149,2]
[338178086,1726363636760,-151.0,0.0002149,2]
[338178087,1726363636783,-151.0,0.0002149,2]
[338178088,1726363636805,-151.0,0.0002149,2]
[338178089,1726363636827,-192.027528,0.0002149,2]
[338178090,1726363636851,-192.027528,0.0002149,2]
[338178091,1726363636878,-194.006365,0.0002149,2]
[338178092,1726363636901,-194.006365,0.0002149,2]
[338178093,1726363636924,-4054.51888,0.0002149,2]
[338178094,1726363636948,-4054.51888,0.0002149,2]
[338178095,1726363636970,-151.0,0.0002149,2]
[338178096,1726363636994,-677.798876,0.0002149,2]
[338178097,1726363637017,-677.798876,0.0002149,2]
[338178098,1726363637040,-151.0,0.0002149,2]
[338178099,1726363637063,-432.108825,0.0002149,2]
[338178100,1726363637084,-432.108825,0.0002149,2]
[338178101,1726363637108,-558.837137,0.0002149,2]
[338178102,1726363637130,-558.837137,0.0002149,2]
[338178103,1726363637153,-1389.19006,0.0002149,2]
[338178104,1726363637176,-1389.19006,0.0002149,2]
[338178105,1726363637203,-165.336093,0.0002149,2]
[338178106,1726363637232,-165.336093,0.0002149,2]
[338178107,1726363637257,-151.0,0.0002149,2]
[338178108,1726363637281,-218.930129,0.0002149,2]
[338178109,1726363637306,-218.930129,0.0002149,2]
[338178110,1726363637329,-665.130486,0.0002149,2]
[338178111,1726363637354,-665.130486,0.0002149,2]
[338178112,1726363637377,-900.18793704,0.00021497,2]
[338178113,1726363637406,-151.0,0.00021497,2]
[338178114,1726363637430,-151.0,0.00021497,2]
[338178115,1726363637451,-151.0,0.00021497,2]
[338178116,1726363637477,-1004.117566,0.00021497,2]
[338178117,1726363637499,-1004.117566,0.00021497,2]
[338178118,1726363637521,-150.112233,0.000215,3]
[338178119,1726363637544,-221.0355,0.000215,2]
[338178120,1726363637566,-150.112233,0.000215,3]
[338178121,1726363637587,-150.112233,0.000215,3]
[338178122,1726363637609,-420.0,0.00021544,2]
[338178123,1726363637630,-293.7,0.00021632,2]
[338178124,1726363637652,-306.253947,0.00021644,2]
[338178125,1726363637675,-168.975,0.00021654,2]
[338178126,1726363637696,-241.705,0.00021654,2]
[338178127,1726363637719,-213.848,0.00021654,2]
[338178128,1726363637743,-150.0,0.00021654,2]
[338178129,1726363637765,-150.0,0.00021654,2]
[338178130,1726363637788,-150.112233,0.000217,5]
[338178131,1726363637811,-150.112233,0.000217,2]
[338178132,1726363637834,-150.112233,0.000217,2]
[338178133,1726363637858,-150.112233,0.000217,3]
[338178134,1726363637882,-150.0,0.000218,2]
[338178135,1726363637904,-151.0,0.00021813,2]
[338178136,1726363637927,-199.026567,0.00021813,2]
[338178137,1726363637950,-151.0,0.00021813,2]
[338178138,1726363637972,-151.0,0.00021813,2]
[338178139,1726363637995,-176.215464,0.00021813,2]
[338178140,1726363638018,-176.215464,0.00021813,2]
[338178141,1726363638042,-177.819,0.00021813,2]
[338178142,1726363638064,-151.0,0.00021813,2]
[338178143,1726363638087,-151.0,0.00021813,2]
[338178144,1726363638110,-731.51988,0.00021813,2]
[338178145,1726363638132,-731.51988,0.00021813,2]
[338178146,1726363638155,-1594.330648,0.00021813,2]
[338178147,1726363638177,-1594.330648,0.00021813,2]
[338178148,1726363638276,-10965.4569309,0.00021876,3]
[338178149,1726363638300,-1086.96363834,0.00021876,3]
[338178150,1726363638323,-151.0,0.00021876,2]
[338178151,1726363638346,-151.0,0.00021876,2]
[338178152,1726363638368,-151.0,0.00021876,2]
[338178153,1726363638391,-151.173119,0.00021876,2]
[338178154,1726363638413,-151.173119,0.00021876,2]
[338178155,1726363638435,-194.006365,0.00021886,2]
[338178156,1726363638460,-194.006365,0.00021886,2]
[338178157,1726363638483,-4054.51888,0.00021886,2]
[338178158,1726363638505,-4054.51888,0.00021886,2]
[338178159,1726363638529,-151.0,0.00021886,2]
[338178160,1726363638554,-677.798876,0.00021886,2]